[Event "Balkan Youth Online-ch 2020"]
[Site "Online"]
[Date "2020.10.31"]
[Round "4.77"]
[White "Puia, Alexia-Teodora"]
[Black "Paroglou, Marianna"]
[Result "1-0"]
[ECO "A80"]
[WhiteElo "1697"]
[BlackElo "1436"]
[Annotator "NA RC"]
[PlyCount "88"]
[EventDate "2020.10.31"]
[EventType "swiss"]
[SourceTitle "playchess.com"]
[Source "ChessBase"]
[SourceQuality "1"]
[TimeControl "1500+5"]

1. d4 {[%emt 0:00:00]} e6 {[%emt 0:00:01]} 2. Bf4 {[%emt 0:00:00]} f5 {[%emt 0:00:05]} 3. e3 {[%emt 0:00:00]} Nf6 {[%emt 0:00:00]} 4. Bd3 {[%emt 0:00:00]} d5 {[%emt 0:00:00]} 5. Nd2 {[%emt 0:00:00]} Be7 {[%emt 0:00:00]} 6. Ngf3 {[%emt 0:00:00]} O-O {[%emt 0:00:36]} 7. Ne5 {[%emt 0:00:00]} Nbd7 {[%emt 0:00:28]} 8. h3 {[%emt 0:00:24]} Ne4 {[%emt 0:00:16]} 9. O-O {[%emt 0:00:30]} Ndf6 {[%emt 0:00:08]} 10. f3 {[%emt 0:01:18]} Nd6 {[%emt 0:00:28]} 11. g4 {[%emt 0:00:45]} Qe8 {[%emt 0:00:23]} 12. Kg2 {[%emt 0:00:35]} Bd7 {[%emt 0:00:22]} 13. Rg1 {[%emt 0:00:29]} Bb5 {[%emt 0:01:00]} 14. c4 {[%emt 0:00:23]} Ba6 {[%emt 0:00:55]} 15. c5 {[%emt 0:00:20]} Nf7 {[%emt 0:00:05]} 16. gxf5 {[%emt 0:01:04]} Nxe5 {[%emt 0:00:29]} 17. Bxa6 {[%emt 0:01:06]} bxa6 {[%emt 0:00:03]} 18. Bxe5 {[%emt 0:00:27]} exf5 {[%emt 0:00:01]} 19. Bxc7 {[%emt 0:00:07]} Nd7 {[%emt 0:01:07]} 20. Kh2 {[%emt 0:00:37]} Bh4 {[%emt 0:00:16]} 21. Qe2 {[%emt 0:04:00]} Qe6 {[%emt 0:01:20]} 22. Qg2 {[%emt 0:01:04]} Bf6 {[%emt 0:00:30]} 23. Bf4 {[%emt 0:00:18]} Kh8 {[%emt 0:00:39]} 24. Rac1 {[%emt 0:00:34]} Rac8 {[%emt 0:00:11]} 25. Qf2 {[%emt 0:00:25]} Rfe8 {[%emt 0:01:16]} 26. Rce1 {[%emt 0:00:13]} Nb8 {[%emt 0:01:15]} 27. Bg5 {[%emt 0:00:19]} Bxg5 {[%emt 0:00:42]} 28. Rxg5 {[%emt 0:00:00]} Nc6 {[%emt 0:00:03]} 29. Qh4 {[%emt 0:00:35]} Qf6 {[%emt 0:01:14]} 30. Nb3 {[%emt 0:00:20]} h6 {[%emt 0:01:53]} 31. Rh5 {[%emt 0:00:00]} Qxh4 {[%emt 0:00:09]} 32. Rxh4 {[%emt 0:00:00]} Re6 {[%emt 0:00:39]} 33. Rf4 {[%emt 0:01:51]} g6 {[%emt 0:00:43]} 34. e4 {[%emt 0:00:28]} Rf8 {[%emt 0:03:01]} 35. Rf1 {[%emt 0:02:25]} Ref6 {[%emt 0:03:34]} 36. exd5 {[%emt 0:02:42]} g5 {[%emt 0:00:08]} 37. dxc6 {[%emt 0:00:00]} gxf4 {[%emt 0:00:05]} 38. d5 {[%emt 0:00:00]} Rc8 {[%emt 0:00:54]} 39. Nd4 {[%emt 0:00:33]} Kg8 {[%emt 0:00:24]} 40. d6 {[%emt 0:00:57]} Rff8 {[%emt 0:01:08]} 41. d7 {[%emt 0:00:09]} Rb8 {[%emt 0:01:42]} 42. c7 {[%emt 0:00:24]} Rxb2+ {[%emt 0:00:01]} 43. Kh1 {[%emt 0:00:00]} Rd2 {[%emt 0:00:00]} 44. d8=Q {[%emt 0:00:05]} Rxd4 {[%emt 0:00:15]} 1-0

[Event "Balkan Youth Online-ch 2020"]
[Site "Online"]
[Date "2020.10.31"]
[Round "4.78"]
[White "Mitkova, Victoria-Elizabeth"]
[Black "Chicarosie, Ioana-Bianca"]
[Result "1-0"]
[ECO "C06"]
[WhiteElo "1105"]
[BlackElo "1521"]
[Annotator "NA RC"]
[PlyCount "55"]
[EventDate "2020.10.31"]
[EventType "swiss"]
[SourceTitle "playchess.com"]
[Source "ChessBase"]
[SourceQuality "1"]
[TimeControl "1500+5"]

1. e4 {[%emt 0:00:00]} e6 {[%emt 0:00:00]} 2. d4 {[%emt 0:00:00]} d5 {[%emt 0:00:00]} 3. Nd2 {[%emt 0:00:03]} Nf6 {[%emt 0:00:06]} 4. e5 {[%emt 0:00:37]} Nfd7 {[%emt 0:00:00]} 5. Bd3 {[%emt 0:00:15]} c5 {[%emt 0:00:00]} 6. c3 {[%emt 0:00:09]} b6 {[%emt 0:00:00]} 7. Ne2 {[%emt 0:00:13]} Ba6 {[%emt 0:00:00]} 8. Bxa6 {[%emt 0:00:36]} Nxa6 {[%emt 0:00:00]} 9. O-O {[%emt 0:00:19]} Be7 {[%emt 0:00:00]} 10. f4 {[%emt 0:00:17]} g6 {[%emt 0:00:19]} 11. Nf3 {[%emt 0:00:22]} Qc7 {[%emt 0:03:10]} 12. c4 {[%emt 0:01:01]} Qb7 {[%emt 0:01:39]} 13. cxd5 {[%emt 0:00:40]} Qxd5 {[%emt 0:00:16]} 14. Nc3 {[%emt 0:00:15]} Qb7 {[%emt 0:00:25]} 15. d5 {[%emt 0:00:49]} exd5 {[%emt 0:00:39]} 16. Nxd5 {[%emt 0:00:12]} Bd8 {[%emt 0:00:15]} 17. f5 {[%emt 0:00:31]} O-O {[%emt 0:00:20]} 18. Ne3 {[%emt 0:00:41]} Qc6 {[%emt 0:01:01]} 19. Qd2 {[%emt 0:00:46]} Bc7 {[%emt 0:01:02]} 20. Nd5 {[%emt 0:00:30]} Rae8 {[%emt 0:00:26]} 21. Qh6 {[%emt 0:00:43]} f6 {[%emt 0:02:48]} 22. fxg6 {[%emt 0:01:06]} hxg6 {[%emt 0:00:49]} 23. Qxg6+ {[%emt 0:00:17]} Kh8 {[%emt 0:00:00]} 24. Qh5+ {[%emt 0:00:20]} Kg8 {[%emt 0:00:09]} 25. Bh6 {[%emt 0:00:04]} Rf7 {[%emt 0:00:20]} 26. Qg6+ {[%emt 0:00:11]} Kh8 {[%emt 0:00:04]} 27. Qxf7 {[%emt 0:00:00]} Rg8 {[%emt 0:00:02]} 28. Ne7 {[%emt 0:00:04]} 1-0

[Event "Balkan Youth Online-ch 2020"]
[Site "Online"]
[Date "2020.10.31"]
[Round "4.79"]
[White "Lusheska, Elena"]
[Black "Zrmanovska, Mihaela"]
[Result "0-1"]
[ECO "D00"]
[WhiteElo "1086"]
[BlackElo "1300"]
[Annotator "NA RC"]
[PlyCount "166"]
[EventDate "2020.10.31"]
[EventType "swiss"]
[SourceTitle "playchess.com"]
[Source "ChessBase"]
[SourceQuality "1"]
[TimeControl "1500+5"]

1. d4 {[%emt 0:00:00]} d5 {[%emt 0:00:00]} 2. Nc3 {[%emt 0:00:00]} Nf6 {[%emt 0:00:22]} 3. Bf4 {[%emt 0:00:00]} e6 {[%emt 0:00:31]} 4. Nb5 {[%emt 0:00:00]} Na6 {[%emt 0:01:12]} 5. a4 {[%emt 0:00:15]} c6 {[%emt 0:00:51]} 6. Na3 {[%emt 0:00:01]} Be7 {[%emt 0:01:00]} 7. e3 {[%emt 0:00:01]} b6 {[%emt 0:00:16]} 8. c3 {[%emt 0:00:19]} O-O {[%emt 0:00:22]} 9. Bd3 {[%emt 0:00:11]} c5 {[%emt 0:00:31]} 10. Nf3 {[%emt 0:00:31]} Bb7 {[%emt 0:01:09]} 11. O-O {[%emt 0:01:13]} Nc7 {[%emt 0:02:52]} 12. b3 {[%emt 0:00:21]} Ne4 {[%emt 0:03:43]} 13. Qc2 {[%emt 0:00:34]} f5 {[%emt 0:00:08]} 14. Nd2 {[%emt 0:00:14]} Ne8 {[%emt 0:04:12]} 15. f3 {[%emt 0:00:06]} Nxd2 {[%emt 0:00:51]} 16. Qxd2 {[%emt 0:00:00]} Nd6 {[%emt 0:01:01]} 17. Qc2 {[%emt 0:01:30]} Rc8 {[%emt 0:00:33]} 18. Qe2 {[%emt 0:02:28]} Qd7 {[%emt 0:03:40]} 19. Bxd6 {[%emt 0:00:35]} Qxd6 {[%emt 0:00:17]} 20. Nb5 {[%emt 0:00:06]} Qb8 {[%emt 0:00:21]} 21. c4 {[%emt 0:00:21]} Bf6 {[%emt 0:01:31]} 22. Qf2 {[%emt 0:01:35]} a6 {[%emt 0:00:10]} 23. Na3 {[%emt 0:00:09]} Qd6 {[%emt 0:00:24]} 24. Nc2 {[%emt 0:02:13]} Rfd8 {[%emt 0:00:37]} 25. Rfd1 {[%emt 0:00:38]} Qe7 {[%emt 0:00:14]} 26. Rab1 {[%emt 0:00:07]} e5 {[%emt 0:00:06]} 27. dxc5 {[%emt 0:00:12]} Qxc5 {[%emt 0:00:03]} 28. Bxf5 {[%emt 0:00:01]} Rc7 {[%emt 0:00:04]} 29. Be6+ {[%emt 0:00:09]} Kh8 {[%emt 0:00:00]} 30. Bxd5 {[%emt 0:00:31]} Bxd5 {[%emt 0:00:00]} 31. cxd5 {[%emt 0:00:00]} Qxc2 {[%emt 0:00:00]} 32. Qxc2 {[%emt 0:00:00]} Rxc2 {[%emt 0:00:00]} 33. Rd3 {[%emt 0:00:03]} Rc5 {[%emt 0:00:00]} 34. Rbd1 {[%emt 0:00:00]} Be7 {[%emt 0:00:00]} 35. e4 {[%emt 0:00:00]} b5 {[%emt 0:00:00]} 36. h3 {[%emt 0:00:20]} bxa4 {[%emt 0:00:10]} 37. bxa4 {[%emt 0:00:00]} Rc4 {[%emt 0:00:00]} 38. Ra1 {[%emt 0:00:00]} a5 {[%emt 0:00:00]} 39. Kh2 {[%emt 0:00:00]} Bb4 {[%emt 0:00:00]} 40. Rb1 {[%emt 0:00:09]} Rd6 {[%emt 0:00:06]} 41. Rbb3 {[%emt 0:00:29]} Rc2 {[%emt 0:00:06]} 42. Rd1 {[%emt 0:00:26]} Ra2 {[%emt 0:00:00]} 43. Rc1 {[%emt 0:00:02]} h6 {[%emt 0:00:01]} 44. Rc6 {[%emt 0:00:16]} Rxc6 {[%emt 0:00:12]} 45. dxc6 {[%emt 0:00:00]} Rc2 {[%emt 0:00:00]} 46. Rb1 {[%emt 0:00:08]} Rxc6 {[%emt 0:00:00]} 47. Rb2 {[%emt 0:00:11]} Rc3 {[%emt 0:00:00]} 48. Ra2 {[%emt 0:00:00]} Ra3 {[%emt 0:00:00]} 49. Rxa3 {[%emt 0:00:00]} Bxa3 {[%emt 0:00:00]} 50. Kg3 {[%emt 0:00:00]} Kg8 {[%emt 0:00:00]} 51. Kg4 {[%emt 0:00:00]} g6 {[%emt 0:00:00]} 52. h4 {[%emt 0:00:00]} Kf7 {[%emt 0:00:00]} 53. f4 {[%emt 0:00:00]} Kf6 {[%emt 0:00:05]} 54. g3 {[%emt 0:00:03]} Bd6 {[%emt 0:00:05]} 55. Kf3 {[%emt 0:00:18]} h5 {[%emt 0:00:00]} 56. Ke3 {[%emt 0:00:06]} Bc5+ {[%emt 0:00:04]} 57. Kf3 {[%emt 0:00:00]} Bd6 {[%emt 0:00:08]} 58. Ke3 {[%emt 0:00:00]} exf4+ {[%emt 0:00:00]} 59. gxf4 {[%emt 0:01:52]} Be7 {[%emt 0:00:03]} 60. Kf3 {[%emt 0:00:02]} Ke6 {[%emt 0:00:00]} 61. Kg3 {[%emt 0:00:00]} Kd6 {[%emt 0:00:00]} 62. Kf3 {[%emt 0:00:12]} Bxh4 {[%emt 0:00:00]} 63. Ke3 {[%emt 0:00:05]} Bg3 {[%emt 0:00:03]} 64. Kf3 {[%emt 0:00:00]} h4 {[%emt 0:00:00]} 65. Kg4 {[%emt 0:00:00]} Ke6 {[%emt 0:00:02]} 66. Kf3 {[%emt 0:00:00]} Kf6 {[%emt 0:00:00]} 67. Kg4 {[%emt 0:00:00]} Kf7 {[%emt 0:00:04]} 68. Kf3 {[%emt 0:00:04]} Ke6 {[%emt 0:00:00]} 69. Kg4 {[%emt 0:00:00]} Kf6 {[%emt 0:00:00]} 70. e5+ {[%emt 0:00:01]} Ke6 {[%emt 0:00:00]} 71. Kf3 {[%emt 0:00:00]} Kf5 {[%emt 0:00:00]} 72. Kg2 {[%emt 0:00:06]} Bxf4 {[%emt 0:00:00]} 73. Kh3 {[%emt 0:00:00]} g5 {[%emt 0:00:00]} 74. Kg2 {[%emt 0:00:00]} Bxe5 {[%emt 0:00:00]} 75. Kh3 {[%emt 0:00:00]} Bd6 {[%emt 0:00:00]} 76. Kg2 {[%emt 0:00:00]} g4 {[%emt 0:00:00]} 77. Kh1 {[%emt 0:00:00]} h3 {[%emt 0:00:00]} 78. Kg1 {[%emt 0:00:00]} g3 {[%emt 0:00:00]} 79. Kh1 {[%emt 0:00:00]} g2+ {[%emt 0:00:03]} 80. Kg1 {[%emt 0:00:00]} Bc5+ {[%emt 0:00:00]} 81. Kh2 {[%emt 0:00:00]} g1=Q+ {[%emt 0:00:00]} 82. Kxh3 {[%emt 0:00:00]} Bd6 {[%emt 0:00:00]} 83. Kh4 {[%emt 0:00:00]} Qg4# {[%emt 0:00:00]} 0-1

[Event "Balkan Youth Online-ch 2020"]
[Site "Online"]
[Date "2020.10.31"]
[Round "4.84"]
[White "Sural, Ceren"]
[Black "Dimitrijevic, Andjela"]
[Result "0-1"]
[ECO "A03"]
[WhiteElo "1686"]
[BlackElo "1810"]
[Annotator "NA RC"]
[PlyCount "116"]
[EventDate "2020.10.31"]
[EventType "swiss"]
[SourceTitle "playchess.com"]
[Source "ChessBase"]
[SourceQuality "1"]
[TimeControl "1500+5"]

1. f4 {[%emt 0:00:00]} d5 {[%emt 0:00:52]} 2. Nf3 {[%emt 0:00:11]} Nf6 {[%emt 0:00:11]} 3. b3 {[%emt 0:00:01]} g6 {[%emt 0:02:53]} 4. Bb2 {[%emt 0:00:06]} Bg7 {[%emt 0:00:00]} 5. e3 {[%emt 0:00:02]} c5 {[%emt 0:00:46]} 6. Be2 {[%emt 0:00:42]} Nc6 {[%emt 0:00:10]} 7. O-O {[%emt 0:00:18]} O-O {[%emt 0:00:06]} 8. Bb5 {[%emt 0:03:56] A03: Bird's Opening with 1...d5.} Qb6 {[%emt 0:04:10]} 9. Bxc6 {[%emt 0:01:40]} bxc6 {[%emt 0:00:13]} 10. Re1 {[%emt 0:00:28] [#]} Bf5 $146 {[%emt 0:00:51]} ({Predecessor:} 10... a5 11. Qc1 a4 12. Nc3 axb3 13. axb3 Rxa1 14. Qxa1 Bb7 15. Na4 Qa7 16. Nc3 Ra8 17. Qxa7 Rxa7 {½-½ (49) Diez Villace,V (1651)-Garcia Corada,P (2013) Valladolid 2013}) 11. d3 {[%emt 0:01:07]} c4 {[%emt 0:00:33]} 12. dxc4 {[%emt 0:01:55]} dxc4 {[%emt 0:00:55]} 13. Qe2 {[%emt 0:00:37]} cxb3 {[%emt 0:00:26]} 14. cxb3 {[%emt 0:00:46]} Rfd8 {[%emt 0:01:10]} 15. Nd4 {[%emt 0:00:40]} Bg4 {[%emt 0:00:16]} 16. Nf3 {[%emt 0:00:27]} Nd5 {[%emt 0:02:53]} 17. Kh1 {[%emt 0:02:18]} Bxb2 {[%emt 0:01:49]} 18. Qxb2 {[%emt 0:00:00]} Nxe3 {[%emt 0:00:52]} 19. Nc3 {[%emt 0:02:04]} Bxf3 {[%emt 0:03:51]} 20. gxf3 {[%emt 0:00:44]} Nf5 {[%emt 0:00:23]} 21. Ne4 {[%emt 0:01:19]} Rd3 {[%emt 0:02:10]} 22. Qg2 {[%emt 0:02:39]} Rad8 {[%emt 0:00:09]} 23. Qh3 {[%emt 0:00:33]} Qd4 {[%emt 0:00:50]} 24. Rg1 {[%emt 0:00:51]} Kh8 {[%emt 0:00:09]} 25. Ng5 {[%emt 0:00:39]} Qg7 {[%emt 0:00:00]} 26. Rac1 {[%emt 0:00:20]} R3d6 {[%emt 0:00:08]} 27. Ne4 {[%emt 0:00:08]} R6d7 {[%emt 0:00:11]} 28. Rce1 {[%emt 0:00:59]} Qh6 {[%emt 0:00:01]} 29. Qxh6 {[%emt 0:00:51]} Nxh6 $17 {[%emt 0:00:00]} 30. Rc1 {[%emt 0:00:05]} Rc7 {[%emt 0:00:08]} 31. Ng5 {[%emt 0:00:05]} Kg7 {[%emt 0:00:06]} 32. Ne4 {[%emt 0:00:36]} Rd3 {[%emt 0:00:08]} 33. Rgf1 {[%emt 0:00:12]} Nf5 {[%emt 0:00:00]} 34. Rc2 {[%emt 0:00:12]} Nd4 {[%emt 0:00:00]} 35. Rcf2 {[%emt 0:00:00]} Nf5 {[%emt 0:00:17]} 36. Rc1 {[%emt 0:00:03]} Nd4 {[%emt 0:00:00]} 37. Rcf1 {[%emt 0:00:00]} c5 {[%emt 0:00:00]} 38. Kg2 {[%emt 0:00:05]} Ne6 {[%emt 0:00:01]} 39. Kg3 {[%emt 0:00:06]} h6 {[%emt 0:00:16]} 40. Rc1 {[%emt 0:00:01]} f5 {[%emt 0:00:01]} 41. Nc3 {[%emt 0:00:19]} a6 {[%emt 0:00:11]} 42. Re1 {[%emt 0:00:01]} Nf8 {[%emt 0:00:07]} (42... Kf7 $19 43. Na4 Rd4) 43. Re5 $2 {[%emt 0:00:01]} (43. Na4 $17) 43... Kf7 {[%emt 0:00:04]} 44. Rfe2 {[%emt 0:00:13]} Rxc3 {[%emt 0:00:00]} 45. Kf2 {[%emt 0:00:08]} c4 {[%emt 0:00:08]} 46. bxc4 {[%emt 0:00:00]} R3xc4 {[%emt 0:00:00]} 47. Ra5 {[%emt 0:00:01]} R7c6 {[%emt 0:00:00]} 48. Rae5 {[%emt 0:00:00]} e6 {[%emt 0:00:03]} 49. Kg3 {[%emt 0:00:00]} Nd7 {[%emt 0:00:09]} 50. Ra5 {[%emt 0:00:04]} R4c5 {[%emt 0:00:05]} 51. Ra3 {[%emt 0:00:00]} Rd5 {[%emt 0:00:07]} 52. Rb2 {[%emt 0:00:06]} Rb5 {[%emt 0:00:05]} 53. Rd2 {[%emt 0:00:00]} Rd5 {[%emt 0:00:01]} 54. Rb2 {[%emt 0:00:00]} Kf6 {[%emt 0:00:18]} 55. Re3 {[%emt 0:00:00]} e5 {[%emt 0:00:00]} 56. Rb7 {[%emt 0:00:20]} exf4+ {[%emt 0:00:02]} 57. Kxf4 {[%emt 0:00:00]} g5+ {[%emt 0:00:00]} 58. Kg3 {[%emt 0:00:00]} f4+ {[%emt 0:00:00]} 0-1

[Event "Balkan Youth Online-ch 2020"]
[Site "Online"]
[Date "2020.10.31"]
[Round "4.87"]
[White "Tsampouli, Vasiliki"]
[Black "Anghel, Maria"]
[Result "1/2-1/2"]
[ECO "B14"]
[WhiteElo "1549"]
[BlackElo "1826"]
[Annotator "NA RC"]
[PlyCount "132"]
[EventDate "2020.10.31"]
[EventType "swiss"]
[SourceTitle "playchess.com"]
[Source "ChessBase"]
[SourceQuality "1"]
[TimeControl "1500+5"]

1. e4 {[%emt 0:00:00]} c6 {[%emt 0:00:00]} 2. d4 {[%emt 0:00:00]} d5 {[%emt 0:00:00]} 3. exd5 {[%emt 0:00:00]} cxd5 {[%emt 0:00:00]} 4. c4 {[%emt 0:00:00]} Nf6 {[%emt 0:00:00]} 5. Nc3 {[%emt 0:00:00]} e6 {[%emt 0:00:00]} 6. Nf3 {[%emt 0:00:00]} Bb4 {[%emt 0:00:00]} 7. Bg5 {[%emt 0:00:23]} h6 {[%emt 0:02:04] B14: Caro-Kann: Panov-Botvinnik Attack with 5...e6 and 5...g6.} 8. Bd2 {[%emt 0:00:18]} O-O {[%emt 0:00:15]} 9. Bd3 {[%emt 0:00:03]} dxc4 {[%emt 0:00:08]} 10. Bxc4 {[%emt 0:00:00] [#]} b6 $146 {[%emt 0:00:58]} ({Predecessor:} 10... Nc6 11. a3 Bd6 12. O-O b6 13. Qe2 Bb7 14. Rac1 Rc8 15. Rfd1 Ne7 16. Ne5 Nf5 {0-1 (35) Cardoso Contreras,S (2006)-Cilloniz Razzeto,A (2388) ICCF email 2007}) 11. a3 {[%emt 0:00:17]} Be7 {[%emt 0:00:19]} 12. O-O {[%emt 0:00:28]} Bb7 {[%emt 0:00:01]} 13. Be3 {[%emt 0:01:43]} Nc6 {[%emt 0:00:36]} 14. Ne5 {[%emt 0:02:20]} Rc8 {[%emt 0:00:37]} 15. Bb3 {[%emt 0:00:10]} Bd6 {[%emt 0:02:35]} 16. f4 {[%emt 0:02:17]} Ne7 {[%emt 0:00:37]} 17. Rc1 {[%emt 0:02:32]} Nf5 {[%emt 0:01:49]} 18. Bf2 {[%emt 0:00:21]} Ne4 {[%emt 0:00:27]} 19. Nxe4 {[%emt 0:02:37]} Bxe4 {[%emt 0:00:20]} 20. Rxc8 {[%emt 0:00:17]} Qxc8 {[%emt 0:00:04]} 21. Qd2 {[%emt 0:00:32]} Qb7 {[%emt 0:00:25]} 22. g4 {[%emt 0:01:09]} Ne7 {[%emt 0:02:52]} 23. Bg3 {[%emt 0:00:31]} Nc6 {[%emt 0:02:05]} 24. d5 {[%emt 0:02:25]} Nxe5 {[%emt 0:04:50]} 25. fxe5 {[%emt 0:00:35]} Bc5+ {[%emt 0:00:07]} 26. Bf2 {[%emt 0:00:04]} exd5 {[%emt 0:00:19]} 27. g5 {[%emt 0:02:41]} Qd7 {[%emt 0:01:59]} 28. Bd1 {[%emt 0:02:53]} hxg5 {[%emt 0:01:10]} 29. Qxg5 {[%emt 0:00:01]} Rc8 {[%emt 0:01:09]} 30. Bg4 {[%emt 0:00:07]} Bxf2+ {[%emt 0:00:45]} 31. Rxf2 {[%emt 0:00:49]} Rc1+ {[%emt 0:00:07]} 32. Qxc1 {[%emt 0:00:10]} Qxg4+ {[%emt 0:00:03]} 33. Kf1 {[%emt 0:00:00]} Bd3+ {[%emt 0:00:09]} 34. Ke1 {[%emt 0:00:15]} Qg1+ {[%emt 0:00:03]} 35. Kd2 {[%emt 0:00:01]} Qxf2+ {[%emt 0:00:00]} 36. Kxd3 {[%emt 0:00:00]} Qf3+ {[%emt 0:00:21]} 37. Qe3 {[%emt 0:00:09]} Qd1+ {[%emt 0:00:16]} 38. Kc3 {[%emt 0:00:10]} Kf8 {[%emt 0:00:20]} 39. Qg5 {[%emt 0:00:23]} d4+ {[%emt 0:00:06]} 40. Kc4 {[%emt 0:00:01]} g6 {[%emt 0:00:08]} 41. Qd8+ {[%emt 0:00:00]} Kg7 {[%emt 0:00:00]} 42. Qf6+ {[%emt 0:00:00]} Kh6 {[%emt 0:00:00]} 43. Qh4+ {[%emt 0:00:00]} Qh5 {[%emt 0:00:08]} 44. Qxh5+ {[%emt 0:00:40]} Kxh5 {[%emt 0:00:00]} 45. Kxd4 {[%emt 0:00:00]} Kh4 {[%emt 0:00:10]} 46. Kd5 {[%emt 0:00:00]} Kh3 {[%emt 0:00:06]} 47. Kd6 {[%emt 0:00:00]} Kxh2 {[%emt 0:00:00]} 48. Ke7 {[%emt 0:00:00]} g5 {[%emt 0:00:00]} 49. Kxf7 {[%emt 0:00:00]} g4 {[%emt 0:00:00]} 50. e6 {[%emt 0:00:00]} g3 {[%emt 0:00:00]} 51. e7 {[%emt 0:00:00]} g2 {[%emt 0:00:00]} 52. e8=Q {[%emt 0:00:00]} g1=Q {[%emt 0:00:00]} 53. Qh8+ {[%emt 0:00:00]} Kg2 {[%emt 0:00:00]} 54. Qg7+ {[%emt 0:00:00]} Kf2 {[%emt 0:00:00]} 55. Qf6+ {[%emt 0:00:00]} Ke2 {[%emt 0:00:00]} 56. Qe5+ {[%emt 0:00:00]} Qe3 {[%emt 0:00:00]} 57. Qh2+ {[%emt 0:00:12]} Kd3 {[%emt 0:00:00]} 58. Qd6+ {[%emt 0:00:04]} Kc2 {[%emt 0:00:00]} 59. Qc7+ {[%emt 0:00:51]} Kxb2 {[%emt 0:00:14]} 60. Qxa7 {[%emt 0:00:01]} Qb3+ {[%emt 0:00:15]} 61. Kf6 {[%emt 0:00:07]} Qc3+ {[%emt 0:00:27]} 62. Ke6 {[%emt 0:00:09]} b5 {[%emt 0:00:25]} 63. Qa6 {[%emt 0:00:29]} Qc4+ {[%emt 0:00:09]} 64. Kd6 {[%emt 0:00:33]} Qb3 {[%emt 0:00:09]} 65. Kc6 {[%emt 0:00:10]} b4 {[%emt 0:00:06]} 66. axb4 $11 {[%emt 0:00:02]} Qxb4 {[%emt 0:00:02]} 1/2-1/2

[Event "Balkan Youth Online-ch 2020"]
[Site "Online"]
[Date "2020.10.31"]
[Round "4.91"]
[White "Mihailidou, Magdalini"]
[Black "Lupascu, Diana-Elena"]
[Result "1-0"]
[ECO "B76"]
[WhiteElo "1796"]
[BlackElo "1668"]
[Annotator "NA RC"]
[PlyCount "93"]
[EventDate "2020.10.31"]
[EventType "swiss"]
[SourceTitle "playchess.com"]
[Source "ChessBase"]
[SourceQuality "1"]
[TimeControl "1500+5"]

1. e4 {[%emt 0:00:00]} c5 {[%emt 0:00:01]} 2. Nf3 {[%emt 0:00:00]} d6 {[%emt 0:00:00]} 3. d4 {[%emt 0:00:00]} cxd4 {[%emt 0:00:00]} 4. Nxd4 {[%emt 0:00:00]} Nf6 {[%emt 0:00:00]} 5. Nc3 {[%emt 0:00:00]} g6 {[%emt 0:00:00]} 6. Be3 {[%emt 0:00:00]} Bg7 {[%emt 0:00:00]} 7. f3 {[%emt 0:00:00]} Nc6 {[%emt 0:00:00]} 8. Qd2 {[%emt 0:00:00]} O-O {[%emt 0:00:00]} 9. O-O-O {[%emt 0:00:00]} d5 {[%emt 0:00:51]} 10. Qe1 {[%emt 0:00:00]} e5 {[%emt 0:00:58]} 11. Nxc6 {[%emt 0:00:50]} bxc6 {[%emt 0:00:01]} 12. exd5 {[%emt 0:00:00]} cxd5 {[%emt 0:03:42]} 13. Bg5 {[%emt 0:00:10]} d4 {[%emt 0:01:40]} 14. Qxe5 {[%emt 0:00:12]} Ng4 {[%emt 0:03:32]} 15. Qf4 {[%emt 0:03:08]} Qa5 {[%emt 0:03:04]} 16. Ne4 {[%emt 0:09:37]} Be5 {[%emt 0:09:33]} 17. Qd2 {[%emt 0:03:30]} Qxa2 {[%emt 0:00:00]} 18. Qd3 {[%emt 0:00:08]} Ne3 {[%emt 0:00:44]} 19. Bxe3 {[%emt 0:01:51]} dxe3 {[%emt 0:00:20]} 20. c3 {[%emt 0:00:29]} Rb8 {[%emt 0:00:51]} 21. Qb1 {[%emt 0:00:11]} Qb3 {[%emt 0:00:18]} 22. Bd3 {[%emt 0:00:32]} e2 {[%emt 0:00:23]} 23. Bxe2 {[%emt 0:00:02]} Bf5 {[%emt 0:00:15]} 24. Qc2 {[%emt 0:00:49]} Qa2 {[%emt 0:00:18]} 25. g3 {[%emt 0:00:06]} Rfc8 {[%emt 0:00:10]} 26. Bd3 {[%emt 0:03:29]} Qa1+ {[%emt 0:00:09]} 27. Qb1 {[%emt 0:00:01]} Qxb1+ {[%emt 0:00:07]} 28. Bxb1 {[%emt 0:00:00]} Rb7 {[%emt 0:00:05]} 29. Nd6 {[%emt 0:00:13]} Bxb1 {[%emt 0:00:05]} 30. Nxc8 {[%emt 0:00:01]} Bf5 {[%emt 0:00:09]} 31. Nd6 {[%emt 0:00:00]} Rb6 {[%emt 0:00:01]} 32. Nxf5 {[%emt 0:00:06]} gxf5 {[%emt 0:00:00]} 33. Rd5 {[%emt 0:00:00]} Bg7 {[%emt 0:00:00]} 34. Rxf5 {[%emt 0:00:00]} Ra6 {[%emt 0:00:00]} 35. Kc2 {[%emt 0:00:00]} Re6 {[%emt 0:00:00]} 36. Rd1 {[%emt 0:00:00]} h6 {[%emt 0:00:00]} 37. Rd8+ {[%emt 0:00:00]} Kh7 {[%emt 0:00:00]} 38. Rxf7 {[%emt 0:00:00]} Kg6 {[%emt 0:00:00]} 39. Rfd7 {[%emt 0:00:00]} Re2+ {[%emt 0:00:00]} 40. Rd2 {[%emt 0:00:00]} Re3 {[%emt 0:00:00]} 41. R2d6+ {[%emt 0:00:00]} Kh7 {[%emt 0:00:11]} 42. f4 {[%emt 0:00:00]} Re2+ {[%emt 0:00:00]} 43. Rd2 {[%emt 0:00:00]} Re1 {[%emt 0:00:00]} 44. R8d7 {[%emt 0:00:00]} a5 {[%emt 0:00:00]} 45. Ra7 {[%emt 0:00:00]} Kg6 {[%emt 0:00:00]} 46. Rd6+ {[%emt 0:00:00]} Kh5 {[%emt 0:00:00]} 47. Rxg7 {[%emt 0:00:00]} 1-0

[Event "Balkan Youth Online-ch 2020"]
[Site "Online"]
[Date "2020.10.31"]
[Round "4.92"]
[White "Eftovska, Lea"]
[Black "Yilmaz, Duygu Sila"]
[Result "1-0"]
[ECO "C54"]
[WhiteElo "1587"]
[BlackElo "1408"]
[Annotator "NA RC"]
[PlyCount "59"]
[EventDate "2020.10.31"]
[EventType "swiss"]
[SourceTitle "playchess.com"]
[Source "ChessBase"]
[SourceQuality "1"]
[TimeControl "1500+5"]

1. e4 {[%emt 0:00:00]} e5 {[%emt 0:00:00]} 2. Nf3 {[%emt 0:00:00]} Nc6 {[%emt 0:00:00]} 3. Bc4 {[%emt 0:00:00]} Bc5 {[%emt 0:00:00]} 4. d3 {[%emt 0:00:00]} Nf6 {[%emt 0:00:09]} 5. O-O {[%emt 0:00:00]} d6 {[%emt 0:00:01]} 6. c3 {[%emt 0:00:00]} O-O {[%emt 0:00:55]} 7. b4 {[%emt 0:00:00]} Bb6 {[%emt 0:00:00]} 8. a4 {[%emt 0:00:00]} a5 {[%emt 0:00:45]} 9. b5 {[%emt 0:00:00]} Ne7 {[%emt 0:00:00]} 10. h3 {[%emt 0:00:00]} Ng6 {[%emt 0:00:38]} 11. Re1 {[%emt 0:00:03]} Qe7 {[%emt 0:02:48]} 12. Nbd2 {[%emt 0:00:36]} Nh5 {[%emt 0:04:17]} 13. Nf1 {[%emt 0:01:24]} Nhf4 {[%emt 0:00:25]} 14. Bxf4 {[%emt 0:00:49]} Nxf4 {[%emt 0:00:00]} 15. d4 {[%emt 0:00:01]} Qf6 {[%emt 0:03:37]} 16. Kh2 {[%emt 0:04:12]} Qh6 {[%emt 0:06:30]} 17. Ng1 {[%emt 0:01:43]} c6 {[%emt 0:05:08]} 18. Ng3 {[%emt 0:02:16]} d5 {[%emt 0:00:44]} 19. exd5 {[%emt 0:01:04]} cxd5 {[%emt 0:00:00]} 20. Bf1 {[%emt 0:00:08]} e4 {[%emt 0:00:07]} 21. f3 {[%emt 0:02:57]} e3 {[%emt 0:00:23]} 22. Qc1 {[%emt 0:03:39]} Re8 {[%emt 0:00:04]} 23. Rxe3 {[%emt 0:00:13]} Be6 {[%emt 0:00:03]} 24. N1e2 {[%emt 0:01:02]} Bc7 {[%emt 0:00:05]} 25. Kg1 {[%emt 0:01:31]} Qg5 {[%emt 0:00:06]} 26. Kh1 {[%emt 0:02:06]} h5 {[%emt 0:00:09]} 27. Rd3 {[%emt 0:00:52]} h4 {[%emt 0:00:02]} 28. Nh5 {[%emt 0:00:47]} Nxd3 {[%emt 0:00:00]} 29. Qxg5 {[%emt 0:00:03]} g6 {[%emt 0:00:00]} 30. Nf6+ {[%emt 0:00:00]} 1-0